bitfinex-derivatives/quotes_BTCF0:USTF0_20250422
["timestamp","ask_amount","ask_price","bid_price","bid_amount"]
[1745351729924,0.3608,91401.0,91392.0,0.183216]
[1745351730125,0.3608,91401.0,91392.0,0.1738]
[1745351730321,0.1093211,91417.0,91400.0,0.0546705]
[1745351730514,0.1093211,91417.0,91401.0,0.1212]
[1745351730709,0.1093215,91417.0,91401.0,0.1212]
[1745351731120,0.1093223,91416.0,91401.0,0.1212]
[1745351731318,0.1313,91409.0,91402.0,0.1198]
[1745351732718,0.1313,91409.0,91402.0,0.1238]
[1745351732918,0.1313,91409.0,91403.0,0.1333]
[1745351733711,0.127,91415.0,91403.0,0.1333]
[1745351733918,0.1209,91414.0,91403.0,0.1333]
[1745351734319,0.1209,91414.0,91403.0,0.1383]
[1745351734814,0.1209,91414.0,91403.0,0.1423]
[1745351735121,0.1209,91409.0,91403.0,0.1423]
[1745351735320,0.1209,91409.0,91403.0,0.1373]
[1745351735514,0.1209,91409.0,91403.0,0.1423]
[1745351736312,0.00016406,91410.0,91404.0,0.1322]
[1745351736522,0.00016406,91410.0,91404.0,0.493]
[1745351737525,0.00016406,91410.0,91404.0,0.6024]
[1745351738224,0.00016406,91410.0,91404.0,0.498]
[1745351738724,0.00016406,91410.0,91404.0,0.499]
[1745351739318,0.00016406,91410.0,91404.0,0.503]
[1745351740418,0.00016406,91410.0,91404.0,0.505]
[1745351747032,0.00016406,91410.0,91405.0,0.07312]
[1745351747430,0.00016406,91410.0,91406.0,0.258]
[1745351748130,0.00016406,91410.0,91406.0,0.1298]
[1745351748428,0.00016406,91410.0,91405.0,0.006]
[1745351748728,0.00016406,91410.0,91405.0,0.08512]
[1745351748918,0.00016406,91410.0,91405.0,0.07144897]
[1745351749120,0.43796406,91410.0,91405.0,0.07144897]
[1745351749319,0.43796406,91410.0,91406.0,0.1198]
[1745351749726,0.43796406,91410.0,91406.0,0.1258]
[1745351750127,0.24596406,91410.0,91406.0,0.1258]
[1745351750733,0.24596406,91410.0,91406.0,0.1318]
[1745351751934,0.24596406,91410.0,91406.0,0.1258]
[1745351752234,0.24596406,91410.0,91406.0,0.1288]
[1745351752836,0.24596406,91410.0,91406.0,0.1278]
[1745351754424,0.24596406,91410.0,91406.0,0.1258]
[1745351754629,0.24596406,91410.0,91406.0,0.1288]
[1745351755229,0.43796406,91410.0,91406.0,0.1288]
[1745351757133,0.24596406,91410.0,91406.0,0.1288]
[1745351759537,0.24596406,91410.0,91406.0,0.11512897]
[1745351761229,0.24596406,91410.0,91406.0,0.009]
[1745351761737,0.24596406,91410.0,91406.0,0.01]
[1745351762443,0.24596406,91410.0,91407.0,0.1296]
[1745351762638,0.24596406,91410.0,91408.0,0.1261]
[1745351763338,0.00016406,91410.0,91408.0,0.1261]
[1745351763538,0.00016406,91410.0,91409.0,0.1241]
[1745351764538,0.00016406,91410.0,91409.0,0.233496]
[1745351765141,0.08554058,91430.0,91409.0,0.531496]
[1745351765336,0.1234,91423.0,91413.0,0.3608]
[1745351765538,0.1234,91423.0,91416.0,0.1]
[1745351765740,0.1234,91423.0,91417.0,0.45622]
[1745351765938,0.08554058,91430.0,91417.0,0.45622]
[1745351766134,0.1234,91428.0,91422.0,0.3608]
[1745351766345,0.1234,91428.0,91423.0,0.356]
[1745351767046,0.08554058,91430.0,91423.0,0.356]
[1745351767441,0.1238,91432.0,91423.0,0.356]
[1745351767640,0.1238,91432.0,91423.0,0.357]
[1745351768538,0.1258,91432.0,91423.0,0.357]
[1745351768740,0.1258,91432.0,91429.0,0.3608]
[1745351768945,0.1242,91431.0,91430.0,0.1252]
[1745351769743,0.1242,91431.0,91430.0,0.486]
[1745351770142,0.003,91432.0,91430.0,0.49435346]
[1745351770342,0.1259,91437.0,91431.0,0.2507]
[1745351770849,0.1259,91437.0,91431.0,0.25096]
[1745351771046,0.1259,91437.0,91431.0,0.24896]
[1745351771841,0.1299,91437.0,91431.0,0.24896]
[1745351772142,0.1299,91437.0,91431.0,0.26047922]
[1745351774742,0.241,91436.0,91431.0,0.26047922]
[1745351775145,0.1215,91435.0,91432.0,0.1282]
[1745351775651,0.2436,91435.0,91433.0,0.1307]
[1745351776037,0.2436,91435.0,91434.0,0.1231]
[1745351777443,0.2456,91435.0,91434.0,0.1231]
[1745351777951,0.2466,91435.0,91434.0,0.1231]
[1745351778947,0.1245,91435.0,91434.0,0.1231]
[1745351779147,0.003,91435.0,91434.0,0.1231]
[1745351782145,0.001,91435.0,91434.0,0.1271]
[1745351782348,0.001,91435.0,91434.0,0.19962]
[1745351782547,0.1251,91438.0,91434.0,0.20462]
[1745351782943,0.1251,91438.0,91437.0,0.1]
[1745351784138,0.1251,91438.0,91437.0,0.103]
[1745351784344,0.00016406,91443.0,91437.0,0.108]
[1745351784543,0.1301,91442.0,91438.0,0.4856]
[1745351784743,0.00016406,91443.0,91438.0,0.4856]
[1745351785440,0.00016406,91443.0,91441.0,0.1]
[1745351785638,0.00016406,91443.0,91442.0,0.2452]
[1745351787051,0.00016406,91443.0,91442.0,0.2492]
[1745351788153,0.1301,91448.0,91442.0,0.2492]
[1745351788343,0.1301,91448.0,91447.0,0.3608]
[1745351790054,0.1301,91448.0,91447.0,0.3628]
[1745351791040,0.1301,91448.0,91447.0,0.43432]
[1745351791245,0.3221,91448.0,91447.0,0.43432]
[1745351791441,0.3231,91448.0,91447.0,0.43432]
[1745351792144,0.1311,91448.0,91447.0,0.43432]
[1745351792553,0.0408451,91454.0,91447.0,0.43332]
[1745351792740,0.0408451,91454.0,91452.0,0.1]
[1745351793053,0.0408451,91454.0,91453.0,0.1291]
[1745351793252,0.2328451,91454.0,91453.0,0.1291]
[1745351793640,0.2338451,91454.0,91453.0,0.1291]
[1745351794244,0.192,91454.0,91453.0,0.1301]
[1745351794446,0.193,91454.0,91453.0,0.11643755]
[1745351795247,0.001,91454.0,91453.0,0.11643755]
[1745351795449,0.001,91454.0,91453.0,0.23693755]
[1745351795755,0.001,91454.0,91453.0,0.21070447]
[1745351796142,0.12,91454.0,91453.0,0.21070447]
[1745351796747,0.192,91481.0,91453.0,0.21070447]
[1745351796748,0.1305,91478.0,91463.0,0.1]
[1745351796947,0.1305,91478.0,91453.0,0.32004847]
[1745351796948,0.1065,91472.0,91468.0,0.56961234]
[1745351797150,0.1065,91472.0,91469.0,0.1303]
[1745351797452,0.1191,91481.0,91469.0,0.2577]
[1745351798746,0.1256,91478.0,91470.0,0.07292]
[1745351799243,0.3176,91478.0,91470.0,0.07292]
[1745351799442,0.3126,91478.0,91470.0,0.07292]
[1745351799947,0.3126,91478.0,91476.0,0.3608]
[1745351800153,0.3126,91478.0,91477.0,0.1243]
[1745351800646,0.3126,91478.0,91476.0,0.3608]
[1745351801255,0.1209,91477.0,91476.0,0.3608]
[1745351801756,0.24,91477.0,91476.0,0.3608]
[1745351801950,0.24,91477.0,91476.0,0.37224524]
[1745351802149,0.432,91477.0,91476.0,0.37224524]
[1745351804152,0.432,91477.0,91476.0,0.3608]
[1745351805946,0.432,91477.0,91470.0,0.118]
[1745351806551,0.432,91477.0,91470.0,0.12948895]
[1745351808251,0.3129,91477.0,91470.0,0.12948895]
[1745351808448,0.192,91477.0,91476.0,0.3608]
[1745351809254,0.192,91477.0,91473.0,0.1295]
[1745351809451,0.122,91476.0,91473.0,0.1295]
[1745351810254,0.314,91476.0,91473.0,0.1295]
[1745351811147,0.314,91476.0,91474.0,0.1286]
[1745351811545,0.314,91476.0,91475.0,0.1295]
[1745351811957,0.192,91476.0,91475.0,0.1295]
[1745351812655,0.192,91476.0,91475.0,0.2581]
[1745351812853,0.2433,91491.0,91475.0,0.2581]
[1745351813048,0.2433,91491.0,91481.0,0.20881234]
[1745351813261,0.2433,91491.0,91482.0,0.2531]
[1745351813961,0.2473,91491.0,91483.0,0.118]
[1745351814357,0.2473,91491.0,91483.0,0.4788]
[1745351814758,0.2473,91491.0,91483.0,0.48692487]
[1745351814950,0.2483,91491.0,91483.0,0.48692487]
[1745351815754,0.2443,91491.0,91483.0,0.48692487]
[1745351815952,0.2483,91491.0,91483.0,0.48692487]
[1745351816664,0.2443,91491.0,91483.0,0.48692487]
[1745351816859,0.2483,91491.0,91483.0,0.36892487]
[1745351817056,0.4403,91491.0,91483.0,0.36892487]
[1745351819254,0.4403,91491.0,91483.0,0.3608]
[1745351819967,0.5495335,91491.0,91483.0,0.3608]
[1745351820263,0.4403,91491.0,91483.0,0.3608]
[1745351820462,0.4149,91490.0,91483.0,0.3608]
[1745351820964,0.1266,91489.0,91483.0,0.3608]
[1745351821164,0.2469,91489.0,91483.0,0.3608]
[1745351821364,0.2469,91489.0,91484.0,0.1291]
[1745351821564,0.1203,91489.0,91484.0,0.1291]
[1745351821758,0.1203,91489.0,91485.0,0.2456]
[1745351822156,0.1203,91489.0,91486.0,0.1291]
[1745351822558,0.1233,91489.0,91487.0,0.1189]
[1745351823070,0.1233,91489.0,91488.0,0.1291]
[1745351824157,0.3153,91489.0,91488.0,0.1291]
[1745351825057,0.3153,91489.0,91487.0,0.1189]
[1745351825264,0.1194,91488.0,91487.0,0.1189]
[1745351825662,0.2475,91488.0,91487.0,0.10524138]
[1745351826273,0.4395,91488.0,91487.0,0.10524138]
[1745351826566,0.4405,91488.0,91487.0,0.10524138]
[1745351826963,0.4415,91488.0,91487.0,0.10524138]
[1745351827867,0.3221,91488.0,91487.0,0.10524138]
[1745351830766,0.3221,91488.0,91487.0,0.08124496]
[1745351834076,0.6829,91488.0,91487.0,0.08124496]
[1745351834266,1.042204,91488.0,91470.0,0.01148895]
[1745351834471,0.3608,91474.0,91471.0,0.121]
[1745351834667,0.3799,91473.0,91471.0,0.121]
[1745351834872,0.489154,91473.0,91471.0,0.121]
[1745351835269,0.5719,91473.0,91471.0,0.121]
[1745351835570,0.5719,91473.0,91472.0,0.00226]
[1745351835776,0.681154,91473.0,91472.0,0.00526]
[1745351835972,0.5719,91473.0,91472.0,0.00526]
[1745351836774,0.681154,91473.0,91472.0,0.00526]
[1745351836977,0.790478,91473.0,91472.0,0.00526]
[1745351837177,0.1092588,91469.0,91468.0,0.01133968]
[1745351837377,0.1092616,91467.0,91464.0,0.00163998]
[1745351837575,0.254,91468.0,91465.0,0.118]
[1745351837776,0.2386624,91466.0,91465.0,0.118]
[1745351838077,0.2386624,91466.0,91465.0,0.10433839]
[1745351838879,0.1092636,91465.0,91464.0,0.00163998]
[1745351839081,0.2364636,91465.0,91464.0,0.00163998]
[1745351839473,0.3543636,91465.0,91464.0,0.00163998]
[1745351840072,0.3543636,91465.0,91464.0,0.00563998]
[1745351840273,0.5463636,91465.0,91464.0,0.00563998]
[1745351840882,0.5463636,91465.0,91464.0,0.00963998]
[1745351842583,0.9071636,91465.0,91464.0,0.00963998]
[1745351847185,0.0546343,91461.0,91447.0,0.00492088]
[1745351847387,0.1092779,91453.0,91452.0,0.1291]
[1745351848288,0.5594779,91453.0,91452.0,0.1291]
[1745351848686,0.5594779,91453.0,91452.0,0.1361]
[1745351848886,0.5594779,91453.0,91452.0,0.10986463]
[1745351849391,0.5594779,91453.0,91452.0,0.09620038]
[1745351849583,0.4305779,91453.0,91452.0,0.10755688]
[1745351850091,0.4305779,91453.0,91452.0,0.11455688]
[1745351851693,0.3213,91453.0,91452.0,0.10320038]
[1745351851884,0.4305779,91453.0,91452.0,0.11443637]
[1745351852084,0.2385779,91453.0,91452.0,0.11443637]
[1745351853086,0.4305779,91453.0,91452.0,0.11443637]
[1745351853383,0.3213,91453.0,91452.0,0.11443637]
[1745351853786,0.4305779,91453.0,91452.0,0.11443637]
[1745351854186,0.2385779,91453.0,91452.0,0.11443637]
[1745351856989,0.0546377,91456.0,91452.0,0.10843637]
[1745351857296,0.1092767,91454.0,91453.0,0.2432]
[1745351857691,0.1092767,91454.0,91453.0,0.3638]
[1745351858085,0.3012767,91454.0,91453.0,0.3638]
[1745351859690,0.3012767,91454.0,91453.0,0.3648]
[1745351860891,0.3012767,91454.0,91453.0,0.2442]
[1745351861092,0.3012767,91454.0,91453.0,0.001]
[1745351861294,0.4244767,91454.0,91453.0,0.001]
[1745351861688,0.7852767,91454.0,91453.0,0.001]
[1745351862192,0.7852767,91454.0,91453.0,0.00064629]
[1745351862597,0.1092935,91440.0,91430.0,0.1273]
[1745351862782,0.4700935,91440.0,91430.0,0.1273]
[1745351862989,0.1093037,91432.0,91430.0,0.1273]
[1745351863293,0.1093037,91432.0,91418.0,0.1261]
[1745351863294,0.3608,91432.0,91418.0,0.1261]
[1745351863484,0.1093186,91419.0,91418.0,0.1261]
[1745351863689,0.1093198,91418.0,91417.0,0.0049225]
[1745351863990,0.1093198,91418.0,91417.0,0.01654462]
[1745351864582,0.1093198,91418.0,91417.0,0.14374462]
[1745351865689,0.1093198,91418.0,91417.0,0.14874462]
[1745351866590,0.1093198,91418.0,91417.0,0.15474462]
[1745351870992,0.2302198,91418.0,91417.0,0.15474462]
[1745351871185,0.2302198,91418.0,91417.0,0.27434462]
[1745351871589,0.3549198,91418.0,91417.0,0.2627225]
[1745351871786,0.3549198,91418.0,91416.0,0.14814407]
[1745351871992,0.1093305,91409.0,91408.0,0.2442]
[1745351872297,0.0546622,91415.0,91408.0,0.2442]
[1745351872489,0.1093305,91409.0,91408.0,0.2442]
[1745351872690,0.2409,91414.0,91408.0,0.2442]
[1745351872894,0.1258,91410.0,91408.0,0.2442]
[1745351873092,0.1293,91409.0,91408.0,0.2442]
[1745351873295,0.2386305,91409.0,91408.0,0.2442]
[1745351873601,0.3644305,91409.0,91408.0,0.25561727]
[1745351873787,0.4854305,91409.0,91408.0,0.26361727]
[1745351874193,0.6774305,91409.0,91408.0,0.26361727]
[1745351874896,0.6774305,91409.0,91408.0,0.26961727]
[1745351876891,0.6774305,91409.0,91408.0,0.006]
[1745351877204,0.6774305,91409.0,91372.0,0.3608]
[1745351877205,0.1093557,91388.0,91372.0,0.3608]
[1745351877498,0.4701557,91388.0,91385.0,0.1308]
[1745351878100,0.4701557,91388.0,91387.0,0.01637185]
[1745351878298,0.4701557,91388.0,91387.0,0.00492411]
[1745351879096,0.4701557,91388.0,91387.0,0.26042411]
[1745351879297,0.4701557,91388.0,91387.0,0.26742411]
[1745351879704,0.4701557,91388.0,91387.0,0.27895911]
[1745351879907,0.4711557,91388.0,91387.0,0.28295911]
[1745351881901,0.3618,91388.0,91387.0,0.28295911]
[1745351882297,0.4711557,91388.0,91387.0,0.28295911]
[1745351884295,0.3618,91388.0,91387.0,0.28295911]
[1745351884695,0.001,91388.0,91387.0,0.28295911]
[1745351886307,0.489,91388.0,91378.0,0.00016407]
[1745351886507,0.1093645,91381.0,91379.0,0.248]
[1745351886710,0.3618,91388.0,91387.0,0.1587396]
[1745351886911,0.4711557,91388.0,91387.0,0.1587396]
[1745351887608,0.4701557,91388.0,91387.0,0.1587396]
[1745351888503,0.4711557,91388.0,91387.0,0.1637396]
[1745351888903,0.4711557,91388.0,91387.0,0.1667396]
[1745351889204,0.6631557,91388.0,91387.0,0.1667396]
[1745351890003,0.6631557,91388.0,91387.0,0.07339043]
[1745351890401,0.9022557,91388.0,91387.0,0.07339043]
[1745351893009,0.9022557,91388.0,91387.0,0.03733228]
[1745351895913,0.7819557,91388.0,91387.0,0.03733228]
[1745351896210,0.4711557,91388.0,91387.0,0.03733228]
[1745351896414,0.5899557,91388.0,91387.0,0.03733228]
[1745351897210,0.4338,91412.0,91387.0,0.39675628]
[1745351897411,0.1093476,91395.0,91388.0,0.2532]
[1745351897605,0.00016407,91397.0,91388.0,0.2532]
[1745351898005,0.00016407,91397.0,91392.0,0.3608]
[1745351898206,0.00016407,91397.0,91393.0,0.1234]
[1745351898413,0.001,91396.0,91393.0,0.1234]
[1745351899102,0.001,91396.0,91393.0,0.3154]
[1745351899308,0.001,91396.0,91394.0,0.1276]
[1745351899706,0.001,91396.0,91395.0,0.1234]
[1745351900102,0.00116407,91397.0,91395.0,0.3154]
[1745351900610,0.00116407,91397.0,91396.0,0.1207]
[1745351901008,0.00116407,91397.0,91396.0,0.22144928]
[1745351901216,0.00116407,91397.0,91396.0,0.41344928]
[1745351901411,0.00016407,91397.0,91396.0,0.41244928]
[1745351902907,0.00116407,91397.0,91396.0,0.41244928]
[1745351903312,0.00216407,91397.0,91396.0,0.41444928]
[1745351904203,0.00216407,91397.0,91396.0,0.22244928]
[1745351904408,0.00216407,91397.0,91396.0,0.20877703]
[1745351905119,0.00216407,91397.0,91396.0,0.40077703]
[1745351906117,0.00216407,91397.0,91396.0,0.20877703]
[1745351911524,0.00216407,91397.0,91396.0,0.18252643]
[1745351918926,0.005,91409.0,91396.0,0.29193843]
[1745351919114,0.005,91409.0,91407.0,0.3608]
[1745351919319,0.005,91409.0,91408.0,0.2465]
[1745351920418,0.007,91409.0,91408.0,0.2465]
[1745351920615,0.011,91409.0,91408.0,0.2465]
[1745351920818,0.011,91409.0,91408.0,0.1228]
[1745351921619,0.011,91409.0,91408.0,0.13443913]
[1745351922024,0.00016407,91418.0,91408.0,0.46759524]
[1745351922213,0.00016407,91418.0,91417.0,0.3588]
[1745351922414,0.1199,91438.0,91417.0,0.5314]
[1745351922619,0.1199,91438.0,91430.0,0.3578]
[1745351922822,0.1092971,91437.0,91430.0,0.3578]
[1745351923121,0.1092971,91437.0,91431.0,0.1253]
[1745351923425,0.1199,91436.0,91431.0,0.1193]
[1745351925125,0.1199,91436.0,91432.0,0.1266]
[1745351925319,0.3119,91436.0,91432.0,0.1266]
[1745351925520,0.3129,91436.0,91432.0,0.1266]
[1745351926930,0.3129,91436.0,91432.0,0.11293318]
[1745351930630,0.193,91436.0,91432.0,0.11293318]
[1745351930931,0.193,91436.0,91433.0,0.2019]
[1745351931233,0.001,91436.0,91433.0,0.2019]
[1745351931418,0.001,91436.0,91434.0,0.125]
[1745351931820,0.119,91435.0,91434.0,0.125]
[1745351932326,0.5459994,91435.0,91434.0,0.125]
[1745351932525,0.4367,91435.0,91434.0,0.125]
[1745351932720,0.796068,91435.0,91397.0,0.3608]
[1745351932923,0.796068,91435.0,91404.0,0.0726]
[1745351932924,0.1093251,91414.0,91404.0,0.0726]
[1745351933116,0.3608,91417.0,91404.0,0.0726]
[1745351933117,0.3642,91413.0,91404.0,0.0726]
[1745351934125,0.5562,91413.0,91404.0,0.0726]
[1745351934328,0.5562,91413.0,91404.0,0.08422831]
[1745351934724,0.5562,91413.0,91404.0,0.01162831]
[1745351935030,0.5562,91413.0,91403.0,0.0726]
[1745351935218,0.4394,91413.0,91404.0,0.1213]
[1745351936332,0.1194,91412.0,91404.0,0.1213]
[1745351936836,0.1256,91411.0,91404.0,0.1213]
[1745351937130,0.1256,91411.0,91404.0,0.1253]
[1745351937330,0.1256,91411.0,91404.0,0.13693238]
[1745351937536,0.192,91413.0,91410.0,0.3608]
[1745351938228,0.1256,91416.0,91410.0,0.3608]
[1745351938621,0.001,91413.0,91410.0,0.3668]
[1745351939226,0.001,91413.0,91410.0,0.3608]
[1745351939426,0.1266,91416.0,91411.0,0.123]
[1745351940331,0.1266,91416.0,91411.0,0.1956]
[1745351940530,0.1175,91415.0,91411.0,0.1956]
[1745351940722,0.1175,91415.0,91411.0,0.123]
[1745351940925,0.123,91414.0,91411.0,0.127]
[1745351942030,0.001,91413.0,91411.0,0.127]
[1745351942429,0.001,91413.0,91412.0,0.0726]
[1745351942732,0.001,91414.0,91412.0,0.0726]
[1745351942927,0.001,91414.0,91413.0,0.3608]
[1745351943432,0.001,91414.0,91413.0,0.5612]
[1745351944334,0.00016407,91418.0,91413.0,0.5612]
[1745351944631,0.3658,91439.0,91417.0,0.3608]
[1745351944832,0.121,91434.0,91429.0,0.20881234]
[1745351945032,0.005,91439.0,91430.0,0.478]
[1745351945232,0.005,91439.0,91438.0,0.3608]
[1745351945625,0.3608,91474.0,91447.0,0.1]
[1745351945835,0.121,91468.0,91458.0,0.3608]
[1745351946235,0.1254,91467.0,91459.0,0.0726]
[1745351946736,0.192,91468.0,91459.0,0.08387113]
[1745351946932,0.3608,91486.0,91467.0,0.3608]
[1745351947127,0.1263,91490.0,91480.0,0.3608]
[1745351947328,0.1263,91490.0,91484.0,0.1]
[1745351947527,0.1263,91497.0,91484.0,0.1]
[1745351947732,0.1263,91496.0,91490.0,0.3608]
[1745351947938,0.4871,91496.0,91485.0,0.0726]
[1745351948438,0.1263,91496.0,91486.0,0.1261]
[1745351948629,0.1263,91496.0,91489.0,0.3608]
[1745351949032,0.1303,91496.0,91490.0,0.0726]
[1745351949536,0.1303,91496.0,91490.0,0.0696]
[1745351949726,0.004,91496.0,91490.0,0.0696]
[1745351950130,0.004,91496.0,91489.0,0.7216]
[1745351950131,0.008,91496.0,91489.0,0.7216]
[1745351950329,0.008,91496.0,91489.0,0.8216]
[1745351950529,0.1259,91495.0,91489.0,0.3608]
[1745351950733,0.1092397,91485.0,91484.0,0.00016396]
[1745351950930,0.3608,91491.0,91471.0,0.3608]
[1745351951131,0.192,91491.0,91480.0,0.20881234]
[1745351951328,0.3608,91490.0,91481.0,0.32286]
[1745351951534,0.05462,91485.0,91482.0,0.1]
[1745351951836,0.2474,91484.0,91481.0,0.07256]
[1745351952036,0.1259,91484.0,91481.0,0.43336]
[1745351952228,0.192,91485.0,91482.0,0.31756]
[1745351953036,0.192,91485.0,91483.0,0.07256]
[1745351953229,0.1274,91490.0,91482.0,0.245]
[1745351953539,0.3608,91485.0,91474.0,0.07272396]
[1745351953836,0.2489,91484.0,91482.0,0.001]
[1745351954038,0.1287,91495.0,91483.0,0.6058]
[1745351954341,0.1274,91494.0,91485.0,0.20881234]
[1745351954536,0.1274,91494.0,91483.0,0.6058]
[1745351954727,0.1274,91494.0,91486.0,0.07256]
[1745351955132,0.1274,91494.0,91483.0,0.6058]
[1745351955332,0.3608,91492.0,91483.0,0.245]
[1745351955542,0.3608,91486.0,91475.0,0.3608]
[1745351955840,0.3743,91485.0,91474.0,0.36096396]
[1745351956038,0.3743,91485.0,91482.0,0.001]
[1745351956241,0.3608,91483.0,91482.0,0.001]
[1745351956428,0.1092449,91481.0,91474.0,0.00016396]
[1745351956635,0.1256,91480.0,91474.0,0.00016396]
[1745351956830,0.2529,91480.0,91474.0,0.12426396]
[1745351957234,0.3193,91480.0,91474.0,0.12426396]
[1745351957835,0.3193,91480.0,91474.0,0.12726396]
[1745351958237,0.1273,91480.0,91474.0,0.12726396]
[1745351958438,0.1273,91480.0,91474.0,0.40726396]
[1745351959139,0.1273,91480.0,91474.0,0.40826396]
[1745351959638,0.1214,91485.0,91474.0,0.40826396]
[1745351959842,0.2367,91496.0,91484.0,0.3608]
[1745351960141,0.2367,91496.0,91485.0,0.2477]
[1745351960346,0.3608,91493.0,91485.0,0.4977]
[1745351960539,0.237,91492.0,91485.0,0.4977]
[1745351961242,0.429,91492.0,91485.0,0.4977]
[1745351961644,0.3608,91488.0,91485.0,0.4977]
[1745351961941,0.2366,91487.0,91485.0,0.25]
[1745351962134,0.1181,91487.0,91485.0,0.25]
[1745351962337,0.192,91488.0,91486.0,0.246]
[1745351962532,0.192,91488.0,91486.0,0.486]
[1745351962939,0.193,91488.0,91486.0,0.486]
[1745351963243,0.001,91488.0,91486.0,0.486]
[1745351963544,0.1181,91487.0,91486.0,0.486]
[1745351964845,0.001,91488.0,91486.0,0.486]
[1745351965043,0.1266,91495.0,91487.0,0.3608]
[1745351965247,0.00546,91496.0,91487.0,0.5998]
[1745351965442,0.00546,91496.0,91495.0,0.3608]
[1745351965638,0.13324056,91499.0,91495.0,0.5908]
[1745351965837,0.00664056,91499.0,91495.0,0.5898]
[1745351966039,0.00016344,91502.0,91496.0,0.25]
[1745351966240,0.00016344,91502.0,91496.0,0.28]
[1745351966441,0.109292,91501.0,91496.0,0.278]
[1745351966643,0.369,91500.0,91496.0,0.278]
[1745351967049,0.003,91499.0,91497.0,0.2553]
[1745351967348,0.003,91499.0,91497.0,0.5053]
[1745351967546,0.122,91498.0,91497.0,0.5053]
[1745351967846,0.122,91498.0,91497.0,0.5023]
[1745351968046,0.122,91498.0,91497.0,0.8631]
[1745351968252,0.003,91501.0,91497.0,0.8631]
[1745351968745,0.002,91498.0,91497.0,0.8631]
[1745351969442,0.001,91499.0,91497.0,0.97239199]
[1745351969647,0.1092094,91511.0,91498.0,0.18185199]
[1745351969844,0.002,91501.0,91498.0,0.32634238]
[1745351970145,0.002,91501.0,91498.0,0.33890494]
[1745351970353,0.1233,91500.0,91499.0,0.1283]
[1745351970551,0.1228,91510.0,91499.0,0.4083]
[1745351970748,0.00016396,91509.0,91499.0,0.4083]
[1745351971152,0.1233,91508.0,91500.0,0.1265]
[1745351971344,0.1233,91508.0,91500.0,0.3865]
[1745351971947,0.00016396,91509.0,91500.0,0.3865]
[1745351971948,0.00016396,91509.0,91507.0,0.3608]
[1745351972150,0.00016396,91509.0,91508.0,0.2548]
[1745351972454,0.3608,91549.0,91508.0,0.5048]
[1745351972647,0.00546,91518.0,91510.0,0.20881234]
[1745351972845,0.00546,91518.0,91517.0,0.3608]
[1745351973151,0.00546,91518.0,91517.0,0.64018559]
[1745351973355,0.3608,91534.0,91517.0,0.71270559]
[1745351973552,0.1187,91528.0,91518.0,0.2466]
[1745351973741,0.1209,91527.0,91518.0,0.5066]
[1745351973941,0.1209,91527.0,91526.0,0.3608]
[1745351974146,0.3129,91527.0,91526.0,0.6208]
[1745351974547,0.192,91527.0,91526.0,0.6198]
[1745351975443,0.193,91527.0,91526.0,0.6198]
[1745351976055,0.0545824,91548.0,91526.0,0.6198]
[1745351976056,0.1266,91545.0,91526.0,0.6198]
[1745351976253,0.1266,91545.0,91535.0,0.3608]
[1745351976552,0.1266,91545.0,91536.0,0.244]
[1745351976751,0.1266,91545.0,91536.0,0.474]
[1745351977143,0.3186,91545.0,91536.0,0.3501]
[1745351977349,0.1091708,91543.0,91536.0,0.3501]
[1745351977547,0.1091711,91543.0,91536.0,0.473]
[1745351977747,0.1266,91542.0,91536.0,0.473]
[1745351978155,0.3186,91542.0,91536.0,0.473]
[1745351979645,0.192,91542.0,91536.0,0.473]
[1745351980050,0.194,91542.0,91536.0,0.473]
[1745351980653,0.1188,91541.0,91536.0,0.473]
[1745351981046,0.3108,91541.0,91536.0,0.473]
[1745351981557,0.6716,91541.0,91536.0,0.23]
[1745351981749,0.1091812,91534.0,91533.0,0.3608]
[1745351981945,0.1091812,91534.0,91533.0,0.4408]
[1745351982258,0.6604292,91534.0,91533.0,0.08]
[1745351982450,0.1091896,91527.0,91524.0,0.3608]
[1745351982953,0.2184456,91527.0,91524.0,0.3608]
[1745351983255,0.4104456,91527.0,91524.0,0.3608]
[1745351983748,0.1091908,91526.0,91525.0,0.1132106]
[1745351983953,0.192,91527.0,91525.0,0.1132106]
[1745351984146,0.192,91527.0,91518.0,0.5981]
[1745351984345,0.192,91527.0,91526.0,0.3608]
[1745351984746,0.192,91527.0,91526.0,0.3628]
[1745351985153,0.00016357,91536.0,91526.0,0.3628]
[1745351985351,0.00016357,91536.0,91527.0,0.2417]
[1745351985556,0.1228,91549.0,91535.0,0.3608]
[1745351985752,0.1091657,91547.0,91536.0,0.2365]
[1745351985951,0.1228,91549.0,91536.0,0.2365]
[1745351986151,0.1091788,91536.0,91535.0,0.3608]
[1745351986454,0.002,91536.0,91535.0,0.3608]
[1745351986647,0.002,91536.0,91527.0,0.2365]
[1745351986845,0.1091818,91534.0,91527.0,0.2365]
[1745351987051,0.1092003,91518.0,91517.0,0.00016387]
[1745351987954,0.2322003,91518.0,91517.0,0.00016387]
[1745351988151,0.4242003,91518.0,91517.0,0.00016387]
[1745351989358,0.4242003,91518.0,91517.0,0.00616387]
[1745351989656,0.3012003,91518.0,91517.0,0.00616387]
[1745351991258,0.192,91518.0,91517.0,0.36696387]
[1745351991448,0.1151,91534.0,91517.0,0.36696387]
[1745351991648,0.1091813,91534.0,91527.0,0.3608]
[1745351991847,0.123,91536.0,91527.0,0.3608]
[1745351991848,0.123,91536.0,91528.0,0.2396]
[1745351992055,0.123,91533.0,91528.0,0.2396]
[1745351993255,0.315,91533.0,91528.0,0.2396]
[1745351993458,0.316,91533.0,91528.0,0.2396]
[1745351993658,0.317,91533.0,91528.0,0.2396]